Cogmind - Beta 15 @@@ ROGUE MODE // 2025.07.12 @ 02:42:19 Player: LameThyst Result: Self-destructed Performance ------------- Evolutions (2) 1000 Regions Visited (7) 1400 Robots Destroyed (40) 200 Value Destroyed (913) 913 Prototype IDs (25) 500 Alien Tech Used (0) 0 Bonus (511) 511 TOTAL SCORE: 4524 Bonus ------- Follower Combat Kills 211 Aligned with FarCom 300 Cogmind --------- Core Integrity 537/550 Matter 300/300 Energy 275/275 System Corruption 0% Temperature Cool (0) Movement Walking (260) Ox2 Location -8/Materials Parts ------- > --- POWER (1) -------- Deuterium Engine > --- PROPULSION (4) --- Aluminum Leg Carbon-fiber Leg > --- UTILITY (3) ------ Large Storage Unit Seismic Detector Hardened Medium Armor Plating > --- WEAPON (3) ------- AWS/Gauss Great Maul > --- INVENTORY (15) --- Light Deuterium Engine Aluminum Leg Aluminum Leg Scrap Suit Improved Heat Sink Sensor Array Improved Signal Interpreter Reactive Plating Splice Drone Bay (6/6) EM Pulse Gun Advanced Beam Rifle High-powered Shotgun Gauss Rifle Improved Datajack Peak State ------------ > --- POWER ------------ Deuterium Engine > --- PROPULSION ------- Aluminum Leg Improved Aluminum Leg Carbon-fiber Leg Carbon-fiber Leg > --- UTILITY ---------- Large Storage Unit Seismic Detector Hardened Medium Armor Plating > --- WEAPON ----------- Gauss Rifle AWS/Gauss > --- INVENTORY -------- Light Deuterium Engine Aluminum Leg Aluminum Leg Scrap Suit Improved Heat Sink Sensor Array Improved Signal Interpreter Reactive Plating Splice Drone Bay EM Pulse Gun Advanced Beam Rifle Advanced Beam Rifle High-powered Shotgun Improved Datajack [Rating: 41] Favorites ----------- Power Ion Engine Engine Ion Engine Propulsion Aluminum Leg Leg Aluminum Leg Utility Seismic Detector Device Seismic Detector Storage Medium Storage Unit Protection Improved Light Armor Plating Weapon Medium Laser Energy Gun Medium Laser Ballistic Gun Assault Rifle Special Weapon Mining Laser Impact Weapon Great Maul Build | -11 -10 -10 -9 -9 -9 -8 -8 ------- Run | Yrd Mat Min Mat Min Exi Min Mat Slots Evolved 4 | . . . 2 . . . 2 Power . | . . . . . . . . Propulsion 2 | . . . 1 . . . 1 Utility 1 | . . . 1 . . . . Weapon 1 | . . . . . . . 1 Parts Attached 40 | 8 6 4 5 5 3 3 6 Power 6 | 1 1 1 1 1 . 1 . Engine 6 | 1 1 1 1 1 . 1 . Core . | . . . . . . . . Reactor . | . . . . . . . . Propulsion 13 | 2 3 2 2 2 . . 2 Treads . | . . . . . . . . Leg 13 | 2 3 2 2 2 . . 2 Wheel . | . . . . . . . . Hover . | . . . . . . . . Flight . | . . . . . . . . Utility 12 | 2 2 1 1 2 2 1 1 Device 4 | 1 1 1 1 . . . . Storage 4 | 1 1 . . . 2 . . Processor . | . . . . . . . . Hackware . | . . . . . . . . Protection 4 | . . . . 2 . 1 1 Artifact . | . . . . . . . . Weapon 9 | 3 . . 1 . 1 1 3 Energy Gun 3 | 2 . . . . . . 1 Energy Cannon . | . . . . . . . . Ballistic Gun 4 | 1 . . . . 1 1 1 Ballistic Cannon . | . . . . . . . . Launcher . | . . . . . . . . Special Weapon 1 | . . . 1 . . . . Impact Weapon 1 | . . . . . . . 1 Slashing Weapon . | . . . . . . . . Piercing Weapon . | . . . . . . . . Special Melee Weapon . | . . . . . . . . Unidentified Prototypes 2 | . . 1 . . . . 1 Parts Lost 3 | . 1 . . . . . 2 Power . | . . . . . . . . Propulsion 2 | . . . . . . . 2 Utility 1 | . 1 . . . . . . Weapon . | . . . . . . . . Highest Loss Streak 2 | . 1 . . . . . 2 To Critical Strikes . | . . . . . . . . Average Backups 9 | 3 7 9 9 10 9 10 13 Power 1 | . 1 2 2 2 1 1 1 Propulsion 2 | 1 3 3 2 1 2 2 2 Utility 2 | . . 1 2 3 4 4 6 Weapon 2 | . 1 3 3 2 2 2 3 Tool/Special . | . . . . . . . . Unused Backups 16 | . 4 1 . 1 . 3 7 Power 1 | . . . . . . 1 . Propulsion 4 | . 4 . . . . . . Utility 5 | . . 1 . . . 1 3 Weapon 5 | . . . . 1 . . 4 Tool/Special 1 | . . . . . . 1 . Average Slot Usage (%) 97 | . 97 100 99 100 93 94 86 Engine 11 | . 14 14 11 11 11 11 9 Leg 31 | . 28 28 33 33 33 33 32 Device 14 | . 12 14 21 14 11 11 9 Storage 11 | . 14 14 11 11 11 11 9 Protection 5 | . . . . 7 11 11 9 Energy Gun 9 | . 13 14 10 11 5 6 3 Ballistic Gun 11 | . 13 14 11 11 11 11 11 Peak Build Rating 41 | 7 8 14 18 17 31 31 41 Average Rating 16 | 6 7 8 15 15 24 24 37 On Entrance 13 | . 7 8 9 13 17 31 21 Naked Turns . | . . . . . . . . Heaviest Build 54 | 15 20 20 30 23 39 45 54 Greatest Support 53 | 20 20 20 33 35 35 35 53 Greatest Overweight (x) 2 | . . . . . 1 1 2 Average Overweight (x) . | . . . . . . . . Largest Inventory Capacity 15 | 8 10 10 10 10 15 15 15 Average Capacity 10 | 7 8 10 10 10 10 15 15 Most Carried 15 | 5 10 10 10 10 10 15 15 Average Carried 9 | 3 7 9 9 9 9 12 14 Final Capacity 15 | 8 10 10 10 10 15 15 15 Final Carried 15 | 5 9 10 10 10 10 15 15 Class Distribution -------------------- 56% | Mutant 38% | Scavenger-Mutant Dominant Class ---------------- Mutant | -10/Materials Mutant | -10/Mines Mutant | -9/Materials Scavenger-Mutant | -9/Mines Scavenger-Mutant | -9/Exiles Scavenger-Mutant | -8/Mines Skirmisher | -8/Materials Resources | -11 -10 -10 -9 -9 -9 -8 -8 ----------- Run | Yrd Mat Min Mat Min Exi Min Mat Matter Collected 983 | 292 182 41 120 168 . 90 90 Remotely . | . . . . . . . . Salvage Created 1228 | 140 338 98 40 186 . . 426 Parts 87 | 5 24 4 4 22 . . 28 Haulers Intercepted 1 | . . . . . . . 1 Recyclers Shooed . | . . . . . . . . Parts Field Recycled . | . . . . . . . . Retrieved Matter . | . . . . . . . . Parts Self-Destructed . | . . . . . . . . Prevented . | . . . . . . . . Kills | -11 -10 -10 -9 -9 -9 -8 -8 ------- Run | Yrd Mat Min Mat Min Exi Min Mat Combat Hostiles Destroyed 27 | . 11 2 2 6 . . 6 Guns 26 | . 11 2 2 6 . . 5 Classes Destroyed 11 | 3 3 . . 3 . . 2 Worker 3 | 1 . . 1 1 . . . Builder 3 | . . . . 1 . . 2 Tunneler 1 | 1 . . . . . . . Hauler 1 | . . . . . . . 1 Recycler 1 | 1 . . . . . . . Watcher 3 | . 2 . . . . . 1 Swarmer 12 | . 6 . 2 4 . . . Grunt 13 | . 5 2 . . . . 6 Brawler 1 | . . . . 1 . . . Sentry 1 | . . . . . . . 1 Demolisher 1 | . . . . 1 . . . Best Kill Streak 4 | 2 4 2 3 4 . . 4 Combat Bots Only 3 | . 3 2 2 3 . . 2 Max Kills in Single Turn 2 | 1 1 1 1 2 . . 2 Gunslinging . | . . . . . . . . Exploded . | . . . . . . . . Melee . | . . . . . . . . Uniques/NPCs Destroyed . | . . . . . . . . Combat | -11 -10 -10 -9 -9 -9 -8 -8 -------- Run | Yrd Mat Min Mat Min Exi Min Mat Hostile Shots Fired 117 | . 56 6 20 27 . . 8 Missed 38 | . 19 2 5 8 . . 4 Hits 79 | . 37 4 15 19 . . 4 Melee 1 | . . . 1 . . . . Projectile 78 | . 37 4 14 19 . . 4 AOE 4 | . . . . 4 . . . Critical Strikes 1 | . 1 . . . . . . Damage Taken 1010 | . 380 47 159 274 . . 150 Core 227 | . 74 12 66 62 . . 13 Absorbed by Shields . | . . . . . . . . Ignored by Resistances 8 | . . . . . . . 8 Regen/Repaired (Parts) 230 | . 230 . . . . . . Core Remaining (%) 77 | 100 . 65 . . . 68 . Volleys Fired 72 | 4 30 6 14 18 . . . Largest 2 | 2 2 2 2 2 . . . Hottest 100 | 70 70 70 100 70 . . . Shots Fired 167 | 8 60 12 26 35 . . 26 Gun 166 | 8 60 12 25 35 . . 26 Cannon . | . . . . . . . . Launcher . | . . . . . . . . Special 1 | . . . 1 . . . . Kinetic 97 | 4 30 6 13 18 . . 26 Thermal 70 | 4 30 6 13 17 . . . Explosive . | . . . . . . . . Electromagnetic . | . . . . . . . . Robot Hit Streak 12 | 1 10 9 10 5 . . 12 Robot Miss Streak 4 | 1 4 1 3 4 . . 3 Penetration Max . | . . . . . . . . Secondary Targets 3 | . 1 . 1 1 . . . Max Gunslinging Chain 1 | . 1 . 1 1 . . . Autonomous 27 | . . . . . . . 27 Shots Hit Robots 103 | 4 36 11 14 17 . . 21 Core Hits 57 | 4 18 5 8 11 . . 11 Critical Kills 1 | . . . . . . . 1 Critical Parts Destroyed 2 | . . . . . . . 2 Critical Strikes 5 | . 1 . . 1 . . 3 Burn 2 | . 1 . . 1 . . . Destroy 2 | . . . . . . . 2 Smash 1 | . . . . . . . 1 Melee Attacks 4 | . . . . . . . 4 Impact 4 | . . . . . . . 4 Slashing . | . . . . . . . . Piercing . | . . . . . . . . Sneak Attacks . | . . . . . . . . Combat Hostiles . | . . . . . . . . Follow-up Attacks . | . . . . . . . . Damage Inflicted 2067 | 51 499 139 192 257 . . 929 Guns 1809 | 51 499 139 192 257 . . 671 Cannons . | . . . . . . . . Explosions 220 | . . . . . . . 220 Melee 38 | . . . . . . . 38 Ramming . | . . . . . . . . Kinetic 1247 | 39 239 76 104 118 . . 671 Thermal 782 | 12 260 63 88 139 . . 220 Explosive . | . . . . . . . . Electromagnetic . | . . . . . . . . Impact 38 | . . . . . . . 38 Slashing . | . . . . . . . . Piercing . | . . . . . . . . Highest Corruption 5 | . 5 5 . . . . . Average Corruption 3 | . 2 5 . . . . . Corruption Purged . | . . . . . . . . Corruption Blocked . | . . . . . . . . Effects 9 | . 3 6 . . . . . Message Errors 3 | . . 3 . . . . . Matter Fused 2 | . 1 1 . . . . . Heat Flow Errors 2 | . . 2 . . . . . Data Loss (minor) 1 | . 1 . . . . . . Data Loss (major) 1 | . 1 . . . . . . Overload Shots . | . . . . . . . . Overflow Damage 61 | . . . . . . . 61 Projectiles . | . . . . . . . . Explosions 23 | . . . . . . . 23 Melee 38 | . . . . . . . 38 Knockbacks . | . . . . . . . . Impact . | . . . . . . . . Kinetic . | . . . . . . . . Secondary . | . . . . . . . . Self-Inflicted Damage 52 | . . . . . . . 52 Shots 1 | . . . . . . . 1 Rammed . | . . . . . . . . Targets Rammed . | . . . . . . . . Kicked . | . . . . . . . . Crushed . | . . . . . . . . Highest Temperature 326 | 18 153 326 12 30 . . . Average Temperature 39 | 8 35 120 5 12 . . . Received Heat Transfer 228 | . 138 24 18 12 . . 36 Effects 1 | . . 1 . . . . . Damage (minor) 1 | . . 1 . . . . . Siege Activations . | . . . . . . . . Martial Activations . | . . . . . . . . Shielding Activations . | . . . . . . . . Robots Disrupted . | . . . . . . . . Combat Hostiles . | . . . . . . . . Robots Corrupted 1 | . . . . . . . 1 Combat Hostiles 1 | . . . . . . . 1 Parts Fried 1 | . . . . . . . 1 Impact Corruptions 1 | . . . . . . . 1 Robots Melted . | . . . . . . . . Combat Hostiles . | . . . . . . . . Parts Melted 1 | . . 1 . . . . . Heat Transferred 2063 | 37 851 185 259 481 . . 250 Parts Sabotaged . | . . . . . . . . Parts Stolen . | . . . . . . . . Parts Stripped . | . . . . . . . . Power Chain Reactions . | . . . . . . . . Alert | -11 -10 -10 -9 -9 -9 -8 -8 ------- Run | Yrd Mat Min Mat Min Exi Min Mat Maximum Alert Level 1 | . . . . . . . 1 Low Security (%) 99 | 100 100 100 100 100 . 100 96 Level 1 . | . . . . . . . 3 Level 2 . | . . . . . . . . Level 3 . | . . . . . . . . Level 4 . | . . . . . . . . Level 5 . | . . . . . . . . High Security . | . . . . . . . . Max Security . | . . . . . . . . Peak Influence 259 | 10 127 46 86 123 . 81 259 Initial 30 | . . 7 5 30 . . 20 Average 29 | 1 48 8 8 31 . 11 69 Influence Increases 1263 | 15 294 56 134 274 . 81 409 Destroy 0b10 Robot/C 760 | . 220 40 80 180 . 60 180 Destroy 0b10 Robot/NC 60 | 15 10 . 5 10 . . 20 Destroy Leader 158 | . 54 10 . 40 . 10 44 Allied During Kill 69 | . . 6 10 14 . 11 28 Successful Hack 27 | . 10 . 8 . . . 9 Disable Machine 105 | . . . 30 15 . . 60 Destroy Structure 54 | . . . 1 . . . 53 Partial Spotted 15 | . . . . . . . 15 Lose Combat Pursuer 15 | . . . . 15 . . . Influence Decreases 1024 | 15 273 61 71 353 . 28 223 Entered New Map 107 | . . 14 11 49 . . 33 Time Decay 833 | 15 263 47 60 270 . 28 150 Lost Part 30 | . 10 . . . . . 20 Lost Ally 54 | . . . . 34 . . 20 Squads Dispatched 2 | . 2 . . . . . . Investigation . | . . . . . . . . Extermination . | . . . . . . . . Reinforcement 2 | . 2 . . . . . . Assault . | . . . . . . . . Garrison . | . . . . . . . . Intercept . | . . . . . . . . Searches Triggered . | . . . . . . . . Construction Impeded . | . . . . . . . . Haulers Reinforced . | . . . . . . . . Active Scanning Responses . | . . . . . . . . Cargo Convoy Interrupts . | . . . . . . . . Stealth | -11 -10 -10 -9 -9 -9 -8 -8 --------- Run | Yrd Mat Min Mat Min Exi Min Mat Distress Signals 6 | . 3 . 1 . . . 2 Communications Jammed . | . . . . . . . . Distress Signals . | . . . . . . . . Times Spotted 62 | . 18 2 9 21 . . 12 Peak Tracking Total 19 | . 4 2 6 19 . . 4 Tactical Retreats 2 | . . . . 2 . . . Traps | -11 -10 -10 -9 -9 -9 -8 -8 ------- Run | Yrd Mat Min Mat Min Exi Min Mat Traps Triggered 4 | . 4 . . . . . . Indirectly . | . . . . . . . . Trap Hack Attempts . | . . . . . . . . Triggered . | . . . . . . . . Disarmed . | . . . . . . . . Reprogrammed . | . . . . . . . . Reused . | . . . . . . . . Traps Extracted . | . . . . . . . . Installed . | . . . . . . . . Triggered . | . . . . . . . . Machines | -11 -10 -10 -9 -9 -9 -8 -8 ---------- Run | Yrd Mat Min Mat Min Exi Min Mat Machines Disabled 7 | . . . 2 1 . . 4 Max in Single Turn 3 | . . . 1 . . . 3 Garrison Access 1 | . . . . . . . 1 Machines Repaired . | . . . . . . . . Machines Dismantled . | . . . . . . . . Machines Sabotaged . | . . . . . . . . Overloaded Fab Kills . | . . . . . . . . Hacking | -11 -10 -10 -9 -9 -9 -8 -8 --------- Run | Yrd Mat Min Mat Min Exi Min Mat Machines Accessed 12 | . 2 1 1 1 3 . 4 Terminals 6 | . 1 . 1 1 . . 3 Fabricators . | . . . . . . . . Repair Stations 1 | . 1 . . . . . . Recycling Units . | . . . . . . . . Scanalyzers . | . . . . . . . . Garrison Access 1 | . . . . . . . 1 Total Hacks 64 | . 15 1 2 3 33 . 10 Successful 51 | . 10 1 1 1 33 . 5 Failed 13 | . 5 . 1 2 . . 5 Catastrophic 4 | . . . 1 . . . 3 Database Lockouts . | . . . . . . . . Manual 16 | . 3 . 2 2 1 . 8 Terminals 16 | . 3 . 2 3 . . 8 Fabricators . | . . . . . . . . Repair Stations 12 | . 12 . . . . . . Recycling Units . | . . . . . . . . Scanalyzers . | . . . . . . . . Garrison Access 2 | . . . . . . . 2 Terminal Hacks 36 | . . 1 1 1 33 . . Record 32 | . . . . . 32 . . Open Door 1 | . . 1 . . . . . Branch Access Points 1 | . . . 1 . . . . Zone Layout 1 | . . . . 1 . . . Proto ID Catalog 1 | . . . . . 1 . . Fabricator Hacks . | . . . . . . . . Repair Station Hacks 10 | . 10 . . . . . . Scan Component 5 | . 5 . . . . . . Repair 5 | . 5 . . . . . . Recycling Unit Hacks . | . . . . . . . . Scanalyzer . | . . . . . . . . Garrison Access Hacks 1 | . . . . . . . 1 Seal Access 1 | . . . . . . . 1 Unauthorized Hacks 4 | . . . . . . . 4 Terminals 4 | . . . . . . . 4 Botnet 1 | . . . . . . . 1 Skim 3 | . . . . . . . 3 Fabricators . | . . . . . . . . Repair Stations . | . . . . . . . . Recycling Units . | . . . . . . . . Scanalyzers . | . . . . . . . . Garrison Access . | . . . . . . . . Data Cores Recovered . | . . . . . . . . Used . | . . . . . . . . Hacking Detections 7 | . 2 . 1 1 . . 3 Full Trace Events . | . . . . . . . . Feedback Events . | . . . . . . . . Feedback Blocked . | . . . . . . . . Robot Schematics Acquired . | . . . . . . . . Robots Built . | . . . . . . . . Authchips . | . . . . . . . . Time . | . . . . . . . . Total Robot Build Rating . | . . . . . . . . Part Schematics Acquired . | . . . . . . . . Parts Built . | . . . . . . . . Authchips . | . . . . . . . . Time . | . . . . . . . . Total Part Build Rating . | . . . . . . . . Parts Repaired 5 | . 5 . . . . . . Time 130 | . 130 . . . . . . Parts Recycled . | . . . . . . . . Recycled Matter . | . . . . . . . . Retrieved Matter . | . . . . . . . . Retrieved Components . | . . . . . . . . Parts Scanalyzed . | . . . . . . . . Part Schematics Acquired . | . . . . . . . . Parts Damaged . | . . . . . . . . Bothacking | -11 -10 -10 -9 -9 -9 -8 -8 ------------ Run | Yrd Mat Min Mat Min Exi Min Mat Used RIF Installer . | . . . . . . . . Robots Hacked . | . . . . . . . . Non-combat . | . . . . . . . . Combat . | . . . . . . . . Robot Hacks Applied . | . . . . . . . . Relay Couplers Released . | . . . . . . . . Fabnet Peak Effective % . | . . . . . . . . Robots Rewired . | . . . . . . . . Allies Hacked . | . . . . . . . . Hacks Repelled . | . . . . . . . . Allies | -11 -10 -10 -9 -9 -9 -8 -8 -------- Run | Yrd Mat Min Mat Min Exi Min Mat Total Allies 7 | . . 2 1 4 . . . Largest Group 3 | . . 2 2 3 3 3 3 Highest-Rated Group 40 | . . 35 35 40 40 40 40 Highest-Rated Ally 31 | . . 31 31 31 16 16 16 Total Orders 1 | . . . 1 . . . . RETURN 1 | . . . 1 . . . . Ally Attacks 75 | . . 1 17 24 . 5 28 Total Damage 816 | . . . 124 296 . 60 336 Kills 13 | . . . 3 4 . 3 3 Allies Corrupted . | . . . . . . . . Allies Melted . | . . . . . . . . Intel | -11 -10 -10 -9 -9 -9 -8 -8 ------- Run | Yrd Mat Min Mat Min Exi Min Mat Active Infowar (turns) 3724 | 96 662 291 542 1029 361 418 325 Sensors 1219 | . . . 66 1029 124 . . Seismic 2937 | 96 662 291 542 366 237 418 325 Robot Analysis Total . | . . . . . . . . Derelict Logs Recovered 3 | . . 1 . 2 . . . Drone Launches 4 | . . . 4 . . . . Drone Recoveries 4 | . . . 4 . . . . Exploration | -11 -10 -10 -9 -9 -9 -8 -8 ------------- Run | Yrd Mat Min Mat Min Exi Min Mat Turns Passed 3854 | 149 737 293 542 1029 361 418 325 Spaces Moved 2161 | 102 336 170 136 733 269 245 170 Core 3 | 3 . . . . . . . Treads . | . . . . . . . . Legs 2158 | 99 336 170 136 733 269 245 170 Wheels . | . . . . . . . . Hover . | . . . . . . . . Flight . | . . . . . . . . Fastest Speed 50 | 50 120 120 120 120 120 120 120 Average Speed 127 | 117 120 120 120 120 127 160 149 Slowest Speed 260 | 120 120 120 120 120 190 190 260 Overloaded Moves . | . . . . . . . . Propulsion Burnouts . | . . . . . . . . Robots Hopped . | . . . . . . . . Potential Cave-ins 4 | . . . . 4 . . . Cave-ins Triggered . | . . . . . . . . Exploration Rate (%) 44 | 6 36 45 18 100 61 66 23 Regions Visited 7 Branch Regions 4 Pre-discovered Areas 1 | . . . . . 1 . . Known Exits Taken 2 | . . . 1 . . 1 . Unknown Exits Taken 5 | 1 1 1 . 1 1 . . Scrap Searched 4 | . . 1 . 1 . 2 . Spaces Dug 1 | . . . . . . . 1 Terrain Destroyed 51 | . . . . . . . 51 Melee 1 | . . . . . . . 1 Projectile 8 | . . . . . . . 8 AOE 42 | . . . . . . . 42 Terrain Rammed . | . . . . . . . . Walls Destroyed . | . . . . . . . . Machines Disabled . | . . . . . . . . Actions | -11 -10 -10 -9 -9 -9 -8 -8 --------- Run | Yrd Mat Min Mat Min Exi Min Mat Total 3114 | 118 612 247 486 849 290 275 237 Wait 734 | . 216 62 322 82 . 15 37 Move 2154 | 101 335 169 135 732 268 244 170 Hop . | . . . . . . . . Pick Up 42 | 5 13 2 2 4 5 5 6 Fast Attach 14 | 7 3 . . . . 1 3 Attach 7 | . . . 2 . 1 2 2 Detach 4 | . . . . . . 2 2 Swap 35 | 1 6 5 8 6 3 2 4 Drop 43 | . 9 3 3 7 8 4 9 Fire 72 | 4 30 6 14 18 . . . Melee 4 | . . . . . . . 4 Ram . | . . . . . . . . Kick . | . . . . . . . . Crush . | . . . . . . . . Escape Stasis . | . . . . . . . . Rewire 5 | . . . . . 5 . . Trap . | . . . . . . . . Miscellaneous . | . . . . . . . . Route ------- -11/Scrapyard -10/Materials -10/Mines (discovered 2 exits: *Mat / Sub) -9/Materials (discovered 2 exits: *Min x2) -9/Mines (discovered 3 exits: *Mat x2 / *Exi) -9/Exiles -8/Mines -8/Materials History --------- Turn | Location | Event 4 | -11/Scrapyard | Discovered new exit (range 15) 150 | -11/Scrapyard | Entered Materials 322 | -10/Materials | Build established: Mutant 331 | -10/Materials | Repaired Aluminum Leg 358 | -10/Materials | Repaired Aluminum Leg 386 | -10/Materials | Repaired Aluminum Leg 631 | -10/Materials | Discovered new exit (range 7) 774 | -10/Materials | Repaired Assault Rifle 801 | -10/Materials | Repaired Med. Laser 887 | -10/Materials | Entered Mines 940 | -10/Mines | Identified exit to Subcaves 1007 | -10/Mines | Found the Drone Emporium 1012 | -10/Mines | Found Prototype Device 1013 | -10/Mines | Identified Splice Drone Bay 1122 | -10/Mines | Discovered new exit (range 11) 1180 | -10/Mines | Entered Materials 1180 | -9/Materials | Accompanied by 2 allies 1180 | -9/Materials | Evolved 2 slots: Propulsion x1, Utility x1 1185 | -9/Materials | Led the pair of lost Derelicts to an unsafe place 1684 | -9/Materials | Identified exit to Mines 1722 | -9/Materials | Entered Mines 1722 | -9/Mines | Accompanied by 2 allies 1975 | -9/Mines | Assembled infested the area 1992 | -9/Mines | Learned Materials terminal intel 2005 | -9/Mines | Identified exit to Materials 2008 | -9/Mines | Met a Derelict testing a Signal Generator 2223 | -9/Mines | Discovered exit to Materials (range 15) 2339 | -9/Mines | Assisted by bots powering up and referring to "LRC-V3" 2384 | -9/Mines | Build established: Scavenger-Mutant 2712 | -9/Mines | Deemed a non-threat by the Exiles lab entrance 2712 | -9/Mines | Discovered new exit (range 5) 2751 | -9/Mines | Entered Exiles 2751 | -9/Exiles | Accompanied by 3 allies 2780 | -9/Exiles | Met 8R-AWN 2802 | -9/Exiles | Met EX-HEX 2856 | -9/Exiles | Met EX-BIN 2874 | -9/Exiles | Aligned with FarCom system 2875 | -9/Exiles | Given EX-Vault access code 2906 | -9/Exiles | Opened EX-Vault 2916 | -9/Exiles | Found AWS/Gauss 2951 | -9/Exiles | Warned to stay clear of 0b10 Research branches 2985 | -9/Exiles | Met EX-DEC 2995 | -9/Exiles | Learned location of Zion (-6) 3087 | -9/Exiles | Discovered new exit (range 14) 3112 | -9/Exiles | Left Exiles lab with AWS/Gauss 3112 | -9/Exiles | Entered Mines 3112 | -8/Mines | Accompanied by 3 allies 3324 | -8/Mines | Found a Scrap Suit stashed away for nefarious purposes 3326 | -8/Mines | Found Scrap Suit 3446 | -8/Mines | Found DCF Scrap (14 items) 3466 | -8/Mines | Discovered exit to Materials (range 8) 3530 | -8/Mines | Entered Materials 3530 | -8/Materials | Accompanied by 3 allies 3530 | -8/Materials | Evolved 2 slots: Propulsion x1, Weapon x1 3531 | -8/Materials | Loaded intel: 12 terminal locations 3846 | -8/Materials | AWS/Gauss suddenly broke down 3855 | -8/Materials | Self-destructed Last Messages --------------- 03833_ Trooper 2b destroyed. 03833_ Slug penetrates Wall. 03835_ U-05 Engineer builds a Wall. 03837_ K-01 Serf collects debris. 03838_ U-05 Engineer builds a Wall. 03841_ Slug penetrates G-47 Trooper. 03841_ G-47 Trooper destroyed. 03841_ K-01 Serf collects debris. 03842_ Slug penetrates G-47 Trooper. 03842_ G-47 Trooper destroyed. 03845_ Slug penetrates G-50 Soldier. 03845_ Slug penetrates Fusion Modulator. 03845_ Fusion Modulator explodes. 03845_ U-05 Engineer destroyed. 03845_ Imp. Aluminum Leg destroyed. 03845_ Destroyed Imp. Aluminum Leg. 03846_ AWS/Gauss suddenly breaks down. 03848_ U-05 Engineer lays Concrete. 03849_ Carbon-fiber Leg destroyed. 03849_ Destroyed Carbon-fiber Leg. Map ----- +----------------------------------------------------+ | ?????????????????????????????????????????????????? | | ?????????????????????????????????????????????????? | | ?????????????????????????????????????????????????? | | ?????????????????????????????????????????????????? | | ?????????????????????????????????????????????????? | | ?????????????????????????????????????????????????? | | ?????????????????????????????????????????????????? | | ?????????????????????????#???????????????????????? | | ????????????????????????? ???????????????????????? | | ????????????????????????? ???????????????????????? | | ?????????T??????????????? ???????????????????????? | | ????????????????????????? ???????????????????????? | | ????????????????????????? ???????????????????????? | | ????????????????????????# #??????????????????????? | | ??????????????? ????????# ######?????????????????? | | ??????????????? ????????#a# ##????????????????? | | ??????????????? ####????# # ##????????????????? | | ??????????????? # [ ???# # #?????????????????? | | ??????????????# # ""?# #! #?????????????????? | | ??????????????# # T"?#!#[=! #?????????????????? | | ???????????????a/ ##=#%%"=#????#+#??????????? | | ????????Y?????# # ] #|!;["T%#???# ??????????? | | ??????????????# # / ;;%*g* #???# ??????????? | | ??????????????# ##;;;;;;==! ! #???# #?????????? | | ??????#???????# ## !;;#+###### +?????????? | | ??????# ??????# ## g @ *%! #?????????? | | ??????# ?????# ## ;;== #?????????? | | ??????# ##### #; # #?????????? | | ??????# ; # #?????????? | | ??????# ; #?######### | | ??????# ; ;## #?# | | ???########### ; ; ####"### #?#= """"" | | ???# ?# # ! ;#????##?# #?# """"" | | ???# ?# #;;;;;;;;;######### #?# """"" | | ???# # ###;# #; ## ##?? | | ???# # #####""k # ![[ ########+# | | ???# = + #???#"T """"" #![%*%% %[ | | ???# # #####"" """"" + [[[[ | | ???# ### + """"" # [[*%* | | ???# ???# ######## # ########+# | | ???#########???# #??????# ###+#####????? | | ???????????????# #??????# ! # ! ##????== | | ???????????????# #??????########### !! #????== | | ??????????????? ? + !! ##????= | | ???????????????###????????######### #????? | | ??????????????????????????????????#= "T" #?????? | | ??????????????????????????????????# """ #?????? | | ??????????????????????????????????# #?????? | | ??????????????????????????????????#########??????# | | | +----------------------------------------------------+ Best States ------------- Heat Dissipation 31 Energy Generation 14 Energy Capacity 275 Matter Stores 300 Matter Capacity 300 Sight Range 16 Robot Scan Range 14 Terrain Scan Density 10 Armor Coverage 225 Resistance: KI 20 Evasion (%) 55 Item Schematics ----------------- None Robot Schematics ------------------ None Fabricated ------------ Nothing Repaired ---------- Aluminum Leg | 51% | -10/Materials Aluminum Leg | 65% | -10/Materials Aluminum Leg | 73% | -10/Materials Assault Rifle | 17% | -10/Materials Med. Laser | 31% | -10/Materials Alien Tech Used ----------------- None Achievements -------------- None Challenges ------------ None Game ------ Seed FluxUtilityKinecellerator Manual? 0 Play Time 00:41:16 Cumulative 75.7 hours Start 2025.07.11 @ 18:05:06 End 2025.07.12 @ 02:42:19 Sessions 4 Manual Loads 0 Difficulty Rogue Special Mode None Game No. 80 Rogue 80 Adventurer 0 Explorer 0 Win Type - Total 0 Types 0/0/0/0/0/0/0/0/0/0 Lore% 41 Gallery% 39 Achievement% 30 Wizard Run 0 Options --------- Layout 1 ASCII 0 Keyboard 0 Movement Mouse Keybinds 0 Fullscreen 2 Font 48/Smallcaps Map View 50x35 Zoom Use 0% Tactical HUD 1 Map Filters NONE Filters NONE Steam 0 RUN: 1af9eb80-1671-4d74-a4f0-2d0046dde9e2